fUST/lending_fUST_20240429
["ID","MTS","AMOUNT","RATE_DAILY","PERIOD"]
[324850650,1714372349642,362.29479417,9.999e-05,2]
[324850651,1714372637087,154.78330338,9.999e-05,2]
[324850652,1714372825607,521.05228698,9.999e-05,2]
[324850653,1714372933311,2000.0,0.000266,120]
[324850667,1714373138093,-521.05228698,0.00012133,2]
[324850668,1714373138118,-74.68452416,0.00012134,2]
[324850669,1714373138145,-225.31547584,0.00012134,2]
[324850670,1714373138165,-222.94190099,0.00012134,2]
[324850671,1714373236097,-300.0,0.00012134,2]
[324850672,1714373236120,-300.0,0.00012134,2]
[324850673,1714373236144,-214.25207847,0.00012135,2]
[324850674,1714373244100,-23720.67119047,0.00012135,2]
[324850675,1714373349107,-521.05228698,0.00012134,2]
[324850676,1714373349130,-965.07673106,0.00012135,2]
[324850677,1714373349151,-947.8650571,0.00012196,2]
[324850678,1714373354098,-789.6162346,0.000129,2]
[324850720,1714373432799,-275.30726526,0.00013598,2]
[324850721,1714373432810,-300.0,0.00013598,2]
[324850722,1714373432819,-300.0,0.00013598,2]
[324850723,1714373432828,-39630.24370683,0.00013599,2]
[324850724,1714373432839,-489.84377178,0.00013599,2]
[324850725,1714373432851,-4323.91252139,0.00013599,2]
[324850726,1714373432860,-153.0,0.000136,2]
[324850727,1714373432869,-154.2475839,0.000136,2]
[324850728,1714373432879,-184.79925453,0.00013696,2]
[324850729,1714373432888,-154.47698098,0.00013696,2]
[324850794,1714373438907,-169.58096822,0.00013696,2]
[324850797,1714373438918,-355.25675146,0.00013696,2]
[324850800,1714373438927,-155.96099584,0.00013696,2]
[324850803,1714373438937,-526.48799582,0.00013696,2]
[324850807,1714373438946,-1169.01441883,0.00013696,2]
[324850811,1714373438958,-173.71793344,0.00013696,2]
[324850813,1714373438967,-199.70982181,0.00013696,2]
[324850816,1714373438976,-207.77209359,0.00013696,2]
[324850818,1714373438985,-159.28109994,0.00013696,2]
[324850820,1714373438995,-195.59340988,0.00013696,2]
[324850822,1714373439004,-160.20070905,0.00013696,2]
[324850824,1714373439013,-186.28290864,0.00013696,2]
[324850826,1714373439023,-154.86062544,0.00013696,2]
[324850828,1714373439033,-154.84515485,0.00013696,2]
[324850830,1714373439043,-207.89139513,0.00013696,2]
[324850832,1714373439052,-472.49363666,0.00013696,2]
[324850834,1714373439062,-266.33845313,0.00013696,2]
[324850835,1714373439071,-212.02949608,0.00013696,2]
[324850837,1714373439082,-284.00479855,0.00013696,2]
[324850839,1714373439091,-182.04827645,0.00013696,2]
[324850841,1714373439100,-525.79927755,0.00013696,2]
[324850843,1714373439110,-264.91044119,0.00013696,2]
[324850845,1714373439119,-247.53145625,0.00013696,2]
[324850847,1714373439128,-155.29605843,0.00013696,2]
[324850849,1714373439137,-301.25877735,0.00013696,2]
[324850851,1714373439147,-203.6652063,0.00013696,2]
[324850853,1714373439156,-260.4808819,0.00013696,2]
[324850855,1714373439166,-347.76924207,0.00013696,2]
[324850857,1714373439175,-277.4212174,0.00013696,2]
[324850858,1714373439188,-237.846728,0.00013696,2]
[324850860,1714373439197,-254.29752854,0.00013697,2]
[324850862,1714373439211,-6197.76710176,0.00013697,2]
[324850873,1714373439314,-1060.09805765,0.00013697,2]
[324850875,1714373439326,-957.21694951,0.00013697,2]
[324851000,1714373440964,-624.88838408,0.00013697,2]
[324851001,1714373440975,-3721.23670623,0.00013697,2]
[324851908,1714373450852,-19774.56404398,0.00013697,2]
[324851910,1714373450861,-500.0,0.00013698,2]
[324851912,1714373450871,-500.0,0.00013698,2]
[324851913,1714373450881,-500.0,0.00013698,2]
[324851915,1714373450891,-500.0,0.00013698,2]
[324851917,1714373450900,-500.0,0.00013698,2]
[324851919,1714373450910,-500.0,0.00013698,2]
[324851921,1714373450919,-500.0,0.00013698,2]
[324851923,1714373450928,-500.0,0.00013698,2]
[324851926,1714373450938,-500.0,0.00013698,2]
[324851927,1714373450947,-500.0,0.00013698,2]
[324851929,1714373450956,-210.85474056,0.00013698,2]
[324851931,1714373450968,-500.0,0.00013698,2]
[324851933,1714373450977,-500.0,0.00013698,2]
[324851935,1714373450986,-500.0,0.00013698,2]
[324851937,1714373450995,-500.0,0.00013698,2]
[324851939,1714373451005,-500.0,0.00013698,2]
[324851941,1714373451014,-500.0,0.00013698,2]
[324851943,1714373451024,-523.85,0.00013698,2]
[324851945,1714373451034,-500.0,0.00013698,2]
[324851947,1714373451043,-500.0,0.00013698,2]
[324851949,1714373451053,-500.0,0.00013698,2]
[324851951,1714373451062,-508.84,0.00013698,2]
[324851953,1714373451071,-500.0,0.00013698,2]
[324851955,1714373451080,-500.0,0.00013698,2]
[324851957,1714373451090,-500.0,0.00013698,2]
[324851959,1714373451099,-500.0,0.00013698,2]
[324851961,1714373451108,-500.0,0.00013698,2]
[324851963,1714373451117,-500.0,0.00013698,2]
[324851965,1714373451126,-500.0,0.00013698,2]
[324851967,1714373451135,-500.0,0.00013698,2]
[324851969,1714373451145,-625.82,0.00013698,2]
[324851971,1714373451153,-500.0,0.00013698,2]
[324851973,1714373451162,-500.0,0.00013698,2]
[324851975,1714373451171,-500.0,0.00013698,2]
[324851977,1714373451180,-500.0,0.00013698,2]
[324851979,1714373451195,-500.0,0.00013698,2]
[324851993,1714373451318,-500.0,0.00013698,2]
[324851995,1714373451327,-558.78546741,0.00013698,2]
[324851997,1714373451337,-1626.12,0.00013698,2]
[324851999,1714373451346,-305.70787731,0.00013698,2]
[324852001,1714373451355,-500.0,0.00013698,2]
[324852003,1714373451364,-500.0,0.00013698,2]
[324852005,1714373451372,-500.0,0.00013698,2]
[324852007,1714373451382,-500.0,0.00013698,2]
[324852008,1714373451391,-500.0,0.00013698,2]
[324852011,1714373451401,-500.0,0.00013698,2]
[324852012,1714373451410,-500.0,0.00013698,2]
[324852014,1714373451419,-500.0,0.00013698,2]
[324852016,1714373451428,-617.22521777,0.00013698,2]
[324852018,1714373451437,-500.0,0.00013698,2]
[324852020,1714373451446,-500.0,0.00013698,2]
[324852022,1714373451455,-611.54,0.00013698,2]
[324852024,1714373451467,-500.0,0.00013698,2]
[324852026,1714373451476,-559.33,0.00013698,2]
[324852028,1714373451485,-500.0,0.00013698,2]
[324852030,1714373451493,-500.0,0.00013698,2]
[324852032,1714373451502,-500.0,0.00013698,2]
[324852034,1714373451511,-608.08,0.00013698,2]
[324852036,1714373451519,-500.0,0.00013698,2]
[324852038,1714373451528,-500.0,0.00013698,2]
[324852040,1714373451538,-540.76487656,0.00013698,2]
[324852042,1714373451547,-500.0,0.00013698,2]
[324852044,1714373451556,-500.0,0.00013698,2]
[324852046,1714373451565,-500.0,0.00013698,2]
[324852048,1714373451574,-500.0,0.00013698,2]
[324852050,1714373451583,-500.0,0.00013698,2]
[324852052,1714373451592,-687.07,0.00013698,2]
[324852054,1714373451601,-500.0,0.00013698,2]
[324852056,1714373451610,-500.0,0.00013698,2]
[324852058,1714373451619,-562.49542159,0.00013698,2]
[324852060,1714373451629,-504.72,0.00013698,2]
[324852062,1714373451638,-500.0,0.00013698,2]
[324852064,1714373451647,-500.0,0.00013698,2]
[324852066,1714373451657,-832.64,0.00013698,2]
[324852068,1714373451666,-518.13411356,0.00013698,2]
[324852070,1714373451675,-500.0,0.00013698,2]
[324852072,1714373451684,-500.0,0.00013698,2]
[324852074,1714373451693,-500.0,0.00013698,2]
[324852076,1714373451703,-500.0,0.00013698,2]
[324852077,1714373451714,-515.01,0.00013698,2]
[324852079,1714373451723,-500.0,0.00013698,2]
[324852081,1714373451732,-1105.2,0.00013698,2]
[324852083,1714373451742,-500.0,0.00013698,2]
[324852085,1714373451752,-630.39,0.00013698,2]
[324852087,1714373451762,-500.0,0.00013698,2]
[324852089,1714373451772,-604.09,0.00013698,2]
[324852091,1714373451782,-500.0,0.00013698,2]
[324852093,1714373451792,-500.0,0.00013698,2]
[324852095,1714373451802,-500.0,0.00013698,2]
[324852097,1714373451811,-500.0,0.00013698,2]
[324852099,1714373451821,-500.0,0.00013698,2]
[324852101,1714373451831,-693.58,0.00013698,2]
[324852103,1714373451841,-500.0,0.00013698,2]
[324852105,1714373451851,-591.07,0.00013698,2]
[324852107,1714373451861,-598.14,0.00013698,2]
[324852109,1714373451871,-500.0,0.00013698,2]
[324852111,1714373451880,-673.38,0.00013698,2]
[324852113,1714373451890,-500.0,0.00013698,2]
[324852115,1714373451899,-533.22,0.00013698,2]
[324852117,1714373451909,-1230.36,0.00013698,2]
[324852119,1714373451919,-500.0,0.00013698,2]
[324852120,1714373451928,-1147.49,0.00013698,2]
[324852122,1714373451938,-306.74552407,0.00013698,2]
[324852124,1714373451947,-500.0,0.00013698,2]
[324852126,1714373451957,-1302.49,0.00013698,2]
[324852128,1714373451968,-844.49,0.00013698,2]
[324852130,1714373451978,-500.0,0.00013698,2]
[324852132,1714373451988,-500.0,0.00013698,2]
[324852134,1714373451998,-614.75,0.00013698,2]
[324852136,1714373452007,-1388.78,0.00013698,2]
[324852138,1714373452017,-500.0,0.00013698,2]
[324852140,1714373452026,-500.0,0.00013698,2]
[324852142,1714373452035,-623.41,0.00013698,2]
[324852144,1714373452045,-500.0,0.00013698,2]
[324852146,1714373452055,-500.0,0.00013698,2]
[324852148,1714373452065,-797.81,0.00013698,2]
[324852150,1714373452074,-500.0,0.00013698,2]
[324852152,1714373452084,-590.29,0.00013698,2]
[324852154,1714373452093,-500.0,0.00013698,2]
[324852156,1714373452102,-807.83,0.00013698,2]
[324852158,1714373452111,-607.0,0.00013698,2]
[324852160,1714373452120,-500.0,0.00013698,2]
[324852162,1714373452130,-500.0,0.00013698,2]
[324852164,1714373452139,-940.83,0.00013698,2]
[324852166,1714373452148,-500.0,0.00013698,2]
[324852168,1714373452157,-564.98995069,0.00013698,2]
[324852170,1714373452166,-500.0,0.00013698,2]
[324852172,1714373452175,-500.0,0.00013698,2]
[324852173,1714373452184,-500.0,0.00013698,2]
[324852176,1714373452194,-500.0,0.00013698,2]
[324852177,1714373452208,-500.0,0.00013698,2]
[324852179,1714373452219,-782.16,0.00013698,2]
[324852181,1714373452229,-500.0,0.00013698,2]
[324852184,1714373452244,-500.0,0.00013698,2]
[324852187,1714373452262,-500.0,0.00013698,2]
[324852189,1714373452276,-500.0,0.00013698,2]
[324852192,1714373452290,-520.06,0.00013698,2]
[324852194,1714373452304,-500.0,0.00013698,2]
[324852197,1714373452320,-500.0,0.00013698,2]
[324852199,1714373452334,-295.2687458,0.00013698,2]
[324852202,1714373452350,-500.0,0.00013698,2]
[324852204,1714373452365,-564.0,0.00013698,2]
[324852206,1714373452379,-851.11,0.00013698,2]
[324852209,1714373452395,-510.47,0.00013698,2]
[324852212,1714373452409,-500.0,0.00013698,2]
[324852214,1714373452422,-500.0,0.00013698,2]
[324852216,1714373452435,-1533.33,0.00013698,2]
[324852217,1714373452448,-1895.96,0.00013698,2]
[324852218,1714373452463,-1322.31,0.00013698,2]
[324852219,1714373452477,-500.0,0.00013698,2]
[324852220,1714373452492,-500.0,0.00013698,2]
[324852221,1714373452509,-500.0,0.00013698,2]
[324852222,1714373452520,-500.0,0.00013698,2]
[324852223,1714373452531,-1437.53,0.00013698,2]
[324852224,1714373452544,-500.0,0.00013698,2]
[324852225,1714373452559,-500.0,0.00013698,2]
[324852226,1714373452572,-1191.98,0.00013698,2]
[324852227,1714373452584,-500.0,0.00013698,2]
[324852228,1714373452594,-500.0,0.00013698,2]
[324852229,1714373452605,-500.0,0.00013698,2]
[324852230,1714373452616,-1134.6,0.00013698,2]
[324852231,1714373452628,-1094.75,0.00013698,2]
[324852232,1714373452640,-500.0,0.00013698,2]
[324852234,1714373452652,-510.32,0.00013698,2]
[324852236,1714373452663,-2552.95,0.00013698,2]
[324852239,1714373452675,-1704.43,0.00013698,2]
[324852241,1714373452687,-500.0,0.00013698,2]
[324852243,1714373452699,-1486.42,0.00013698,2]
[324852245,1714373452711,-500.0,0.00013698,2]
[324852248,1714373452724,-500.0,0.00013698,2]
[324852250,1714373452736,-500.0,0.00013698,2]
[324852251,1714373452749,-500.0,0.00013698,2]
[324852252,1714373452761,-500.0,0.00013698,2]
[324852255,1714373452773,-500.0,0.00013698,2]
[324852257,1714373452785,-500.0,0.00013698,2]
[324852259,1714373452798,-500.0,0.00013698,2]
[324852261,1714373452811,-500.0,0.00013698,2]
[324852263,1714373452822,-500.0,0.00013698,2]
[324852266,1714373452834,-500.0,0.00013698,2]
[324852268,1714373452846,-500.0,0.00013698,2]
[324852270,1714373452857,-500.0,0.00013698,2]
[324852273,1714373452871,-725.26,0.00013698,2]
[324852275,1714373452883,-500.0,0.00013698,2]
[324852277,1714373452895,-500.0,0.00013698,2]
[324852279,1714373452907,-500.0,0.00013698,2]
[324852282,1714373452920,-500.0,0.00013698,2]
[324852283,1714373452931,-580.34950496,0.00013698,2]
[324852284,1714373452943,-844.8,0.00013698,2]
[324852285,1714373452955,-663.85,0.00013698,2]
[324852286,1714373452969,-500.0,0.00013698,2]
[324852287,1714373452981,-500.0,0.00013698,2]
[324852288,1714373452993,-590.93,0.00013698,2]
[324852290,1714373453007,-500.0,0.00013698,2]
[324852292,1714373453019,-500.0,0.00013698,2]
[324852295,1714373453032,-500.0,0.00013698,2]
[324852297,1714373453044,-500.0,0.00013698,2]
[324852299,1714373453055,-500.0,0.00013698,2]
[324852301,1714373453068,-500.0,0.00013698,2]
[324852302,1714373453080,-500.0,0.00013698,2]
[324852303,1714373453092,-500.0,0.00013698,2]
[324852304,1714373453104,-500.0,0.00013698,2]
[324852305,1714373453115,-500.0,0.00013698,2]
[324852306,1714373453128,-963.94,0.00013698,2]
[324852307,1714373453140,-500.0,0.00013698,2]
[324852308,1714373453152,-500.0,0.00013698,2]
[324852309,1714373453164,-790.18,0.00013698,2]
[324852310,1714373453175,-500.0,0.00013698,2]
[324852311,1714373453190,-500.0,0.00013698,2]
[324852312,1714373453202,-1385.15,0.00013698,2]
[324852313,1714373453217,-904.16,0.00013698,2]
[324852314,1714373453232,-556.73,0.00013698,2]
[324852316,1714373453245,-500.0,0.00013698,2]
[324852318,1714373453257,-500.0,0.00013698,2]
[324852320,1714373453269,-2612.66,0.00013698,2]
[324852323,1714373453283,-500.0,0.00013698,2]
[324852325,1714373453295,-500.0,0.00013698,2]
[324852327,1714373453307,-500.0,0.00013698,2]
[324852329,1714373453318,-670.19,0.00013698,2]
[324852331,1714373453330,-5705.05,0.00013698,2]
[324852334,1714373453342,-500.0,0.00013698,2]
[324852336,1714373453354,-3685.88,0.00013698,2]
[324852338,1714373453366,-500.0,0.00013698,2]
[324852340,1714373453379,-500.0,0.00013698,2]
[324852343,1714373453390,-500.0,0.00013698,2]
[324852354,1714373453539,-500.0,0.00013698,2]
[324852357,1714373453558,-500.0,0.00013698,2]
[324852359,1714373453568,-500.0,0.00013698,2]
[324852361,1714373453578,-151.0,0.00013698,2]
[324852363,1714373453587,-151.0,0.00013698,2]
[324852364,1714373453599,-151.0,0.00013698,2]
[324852365,1714373453608,-151.0,0.00013698,2]
[324852367,1714373453617,-151.0,0.00013698,2]
[324852368,1714373453627,-151.0,0.00013698,2]
[324852369,1714373453636,-151.0,0.00013698,2]
[324852370,1714373453646,-151.0,0.00013698,2]
[324852371,1714373453655,-500.0,0.00013698,2]
[324852372,1714373453665,-151.0,0.00013698,2]
[324852374,1714373453674,-151.0,0.00013698,2]
[324852375,1714373453683,-151.0,0.00013698,2]
[324852376,1714373453692,-151.0,0.00013698,2]
[324852378,1714373453702,-151.0,0.00013698,2]
[324852380,1714373453711,-151.0,0.00013698,2]
[324852382,1714373453723,-151.0,0.00013698,2]
[324852384,1714373453732,-500.0,0.00013698,2]
[324852386,1714373453741,-151.0,0.00013698,2]
[324852388,1714373453750,-500.0,0.00013698,2]
[324852390,1714373453759,-3055.4,0.00013698,2]
[324852392,1714373453769,-500.0,0.00013698,2]
[324852394,1714373453779,-500.0,0.00013698,2]
[324852396,1714373453788,-500.0,0.00013698,2]
[324852398,1714373453798,-943.99,0.00013698,2]
[324852400,1714373453807,-500.0,0.00013698,2]
[324852402,1714373453817,-500.0,0.00013698,2]
[324852404,1714373453826,-676.52,0.00013698,2]
[324852406,1714373453835,-2057.47,0.00013698,2]
[324852408,1714373453844,-500.0,0.00013698,2]
[324852410,1714373453853,-598.25,0.00013698,2]
[324852412,1714373453863,-151.0,0.00013698,2]
[324852414,1714373453872,-500.0,0.00013698,2]
[324852416,1714373453881,-1272.21,0.00013698,2]
[324852418,1714373453890,-500.0,0.00013698,2]
[324852419,1714373453900,-7316.87,0.00013698,2]
[324852421,1714373453909,-500.0,0.00013698,2]
[324852423,1714373453919,-726.9,0.00013698,2]
[324852425,1714373453928,-500.0,0.00013698,2]
[324852427,1714373453938,-500.0,0.00013698,2]
[324852429,1714373453947,-797.11,0.00013698,2]
[324852431,1714373453957,-604.72,0.00013698,2]
[324852432,1714373453969,-500.0,0.00013698,2]
[324852434,1714373453978,-500.0,0.00013698,2]
[324852435,1714373453987,-537.05482004,0.00013698,2]
[324852437,1714373453996,-1382.46,0.00013698,2]
[324852438,1714373454006,-500.0,0.00013698,2]
[324852440,1714373454015,-2899.35,0.00013698,2]
[324852442,1714373454025,-643.79,0.00013698,2]
[324852443,1714373454034,-292.68277718,0.00013698,2]
[324852445,1714373454044,-565.21859299,0.00013698,2]
[324852447,1714373454053,-1036.38,0.00013698,2]
[324852449,1714373454063,-500.0,0.00013698,2]
[324852450,1714373454073,-500.0,0.00013698,2]
[324852452,1714373454082,-500.0,0.00013698,2]
[324852453,1714373454092,-500.0,0.00013698,2]
[324852454,1714373454101,-500.0,0.00013698,2]
[324852455,1714373454110,-500.0,0.00013698,2]
[324852456,1714373454120,-500.0,0.00013698,2]
[324852457,1714373454129,-3783.63,0.00013698,2]
[324852458,1714373454139,-567.55,0.00013698,2]
[324852459,1714373454148,-500.0,0.00013698,2]
[324852460,1714373454158,-500.0,0.00013698,2]
[324852461,1714373454167,-1762.71,0.00013698,2]
[324852462,1714373454177,-544.02,0.00013698,2]
[324852463,1714373454187,-500.0,0.00013698,2]
[324852464,1714373454198,-500.0,0.00013698,2]
[324852465,1714373454207,-909.69,0.00013698,2]
[324852466,1714373454220,-500.0,0.00013698,2]
[324852467,1714373454229,-1544.95,0.00013698,2]
[324852468,1714373454239,-566.35,0.00013698,2]
[324852470,1714373454248,-500.0,0.00013698,2]
[324852471,1714373454258,-1632.08,0.00013698,2]
[324852472,1714373454267,-2536.93,0.00013698,2]
[324852473,1714373454278,-16167.34,0.00013698,2]
[324852474,1714373454288,-844.47,0.00013698,2]
[324852475,1714373454298,-3184.94,0.00013698,2]
[324852477,1714373454307,-1248.72,0.00013698,2]
[324852478,1714373454316,-705.06,0.00013698,2]
[324852479,1714373454325,-500.0,0.00013698,2]
[324852481,1714373454335,-500.0,0.00013698,2]
[324852482,1714373454343,-5367.9,0.00013698,2]
[324852484,1714373454353,-603.55,0.00013698,2]
[324852485,1714373454362,-500.0,0.00013698,2]
[324852486,1714373454371,-1338.49,0.00013698,2]
[324852487,1714373454380,-500.0,0.00013698,2]
[324852488,1714373454390,-752.29,0.00013698,2]
[324852489,1714373454399,-589.49,0.00013698,2]
[324852490,1714373454409,-803.38,0.00013698,2]
[324852491,1714373454420,-500.0,0.00013698,2]
[324852492,1714373454429,-500.0,0.00013698,2]
[324852493,1714373454438,-12574.48,0.00013698,2]
[324852494,1714373454447,-12192.24,0.00013698,2]
[324852495,1714373454456,-500.0,0.00013698,2]
[324852496,1714373454468,-998.22,0.00013698,2]
[324852497,1714373454477,-5507.92,0.00013698,2]
[324852498,1714373454486,-589.37,0.00013698,2]
[324852499,1714373454495,-992.33,0.00013698,2]
[324852500,1714373454504,-500.0,0.00013698,2]
[324852501,1714373454513,-500.0,0.00013698,2]
[324852502,1714373454523,-500.0,0.00013698,2]
[324852503,1714373454532,-151.0,0.00013699,2]
[324852504,1714373454542,-151.0,0.00013699,2]
[324852505,1714373454551,-151.0,0.00013699,2]
[324852506,1714373454561,-151.0,0.00013699,2]
[324852507,1714373454570,-248.846797,0.00013699,2]
[324852508,1714373454579,-248.846797,0.00013699,2]
[324852509,1714373454588,-248.846797,0.00013699,2]
[324852510,1714373454597,-248.846797,0.00013699,2]
[324852511,1714373454606,-248.846797,0.00013699,2]
[324852512,1714373454615,-248.846797,0.00013699,2]
[324852513,1714373454624,-248.846797,0.00013699,2]
[324852514,1714373454633,-248.846797,0.00013699,2]
[324852515,1714373454642,-248.846797,0.00013699,2]
[324852516,1714373454651,-248.846797,0.00013699,2]
[324852517,1714373454661,-248.846797,0.00013699,2]
[324852518,1714373454670,-248.846797,0.00013699,2]
[324852519,1714373454679,-248.846797,0.00013699,2]
[324852520,1714373454688,-248.846797,0.00013699,2]
[324852521,1714373454698,-151.0,0.00013699,2]
[324852522,1714373454707,-151.512951,0.00013699,2]
[324852523,1714373454718,-151.0,0.00013699,2]
[324852524,1714373454727,-151.0,0.00013699,2]
[324852525,1714373454736,-151.0,0.00013699,2]
[324852526,1714373454745,-151.0,0.00013699,2]
[324852527,1714373454754,-151.0,0.00013699,2]
[324852528,1714373454763,-151.0,0.00013699,2]
[324852529,1714373454772,-151.0,0.00013699,2]
[324852530,1714373454781,-186.427619,0.00013699,2]
[324852531,1714373454790,-151.0,0.00013699,2]
[324852532,1714373454799,-151.0,0.00013699,2]
[324852533,1714373454809,-151.0,0.00013699,2]
[324852534,1714373454818,-151.0,0.00013699,2]
[324852535,1714373454827,-151.0,0.00013699,2]
[324852536,1714373454836,-151.0,0.00013699,2]
[324852537,1714373454845,-151.0,0.00013699,2]
[324852538,1714373454854,-166.666666,0.00013699,2]
[324852539,1714373454863,-3132.1908708,0.00013699,2]
[324852540,1714373454872,-151.0,0.00013699,2]
[324852541,1714373454881,-151.0,0.00013699,2]
[324852542,1714373454890,-151.0,0.00013699,2]
[324852543,1714373454899,-151.0,0.00013699,2]
[324852544,1714373454908,-151.0,0.00013699,2]
[324852545,1714373454917,-151.0,0.00013699,2]
[324852546,1714373454927,-151.0,0.00013699,2]
[324852547,1714373454936,-151.0,0.00013699,2]
[324852548,1714373454945,-151.0,0.00013699,2]
[324852549,1714373454954,-151.0,0.00013699,2]
[324852550,1714373454965,-151.0,0.00013699,2]
[324852551,1714373454974,-151.0,0.00013699,2]
[324852552,1714373454983,-151.0,0.00013699,2]
[324852553,1714373454993,-151.0,0.00013699,2]
[324852554,1714373455002,-151.0,0.00013699,2]
[324852555,1714373455012,-151.0,0.00013699,2]
[324852556,1714373455021,-254.632697,0.00013699,2]
[324852557,1714373455030,-151.0,0.00013699,2]
[324852558,1714373455039,-151.0,0.00013699,2]
[324852559,1714373455049,-190.869089,0.00013699,2]
[324852560,1714373455058,-190.869089,0.00013699,2]
[324852561,1714373455068,-190.869089,0.00013699,2]
[324852562,1714373455077,-190.869089,0.00013699,2]
[324852563,1714373455086,-190.869089,0.00013699,2]
[324852564,1714373455095,-190.869089,0.00013699,2]
[324852565,1714373455104,-190.869089,0.00013699,2]
[324852566,1714373455113,-190.869089,0.00013699,2]
[324852567,1714373455123,-190.869089,0.00013699,2]
[324852568,1714373455132,-190.869089,0.00013699,2]
[324852569,1714373455141,-190.869089,0.00013699,2]
[324852570,1714373455151,-190.869089,0.00013699,2]
[324852571,1714373455160,-151.0,0.00013699,2]
[324852572,1714373455169,-528.017137,0.00013699,2]
[324852573,1714373455178,-528.017137,0.00013699,2]
[324852574,1714373455188,-528.017137,0.00013699,2]
[324852575,1714373455199,-528.017137,0.00013699,2]
[324852576,1714373455208,-528.017137,0.00013699,2]
[324852577,1714373455220,-528.017137,0.00013699,2]
[324852578,1714373455230,-528.017137,0.00013699,2]
[324852579,1714373455240,-528.017137,0.00013699,2]
[324852580,1714373455249,-528.017137,0.00013699,2]
[324852581,1714373455257,-528.017137,0.00013699,2]
[324852582,1714373455268,-528.017137,0.00013699,2]
[324852583,1714373455277,-528.017137,0.00013699,2]
[324852584,1714373455286,-262.907288,0.00013699,2]
[324852585,1714373455296,-262.907288,0.00013699,2]
[324852586,1714373455305,-262.907288,0.00013699,2]
[324852587,1714373455315,-262.907288,0.00013699,2]
[324852588,1714373455324,-262.907288,0.00013699,2]
[324852589,1714373455333,-262.907288,0.00013699,2]
[324852590,1714373455342,-262.907288,0.00013699,2]
[324852591,1714373455352,-262.907288,0.00013699,2]
[324852592,1714373455361,-262.907288,0.00013699,2]
[324852593,1714373455370,-262.907288,0.00013699,2]
[324852594,1714373455379,-262.907288,0.00013699,2]
[324852595,1714373455388,-262.907288,0.00013699,2]
[324852596,1714373455397,-262.907288,0.00013699,2]
[324852597,1714373455406,-262.907288,0.00013699,2]
[324852598,1714373455416,-262.907288,0.00013699,2]
[324852599,1714373455425,-262.907288,0.00013699,2]
[324852600,1714373455434,-151.0,0.00013699,2]
[324852601,1714373455443,-151.0,0.00013699,2]
[324852602,1714373455452,-151.0,0.00013699,2]
[324852603,1714373455461,-151.0,0.00013699,2]
[324852604,1714373455472,-192.993578,0.00013699,2]
[324852605,1714373455481,-151.0,0.00013699,2]
[324852606,1714373455490,-218.797184,0.00013699,2]
[324852607,1714373455500,-151.0,0.00013699,2]
[324852608,1714373455508,-151.0,0.00013699,2]
[324852609,1714373455518,-151.0,0.00013699,2]
[324852610,1714373455527,-151.0,0.00013699,2]
[324852611,1714373455536,-151.0,0.00013699,2]
[324852612,1714373455546,-151.0,0.00013699,2]